fUST/lending_fUST_20260310
["ID","MTS","AMOUNT","RATE_DAILY","PERIOD"]
[408073447,1773111043982,-460.629695,0.00012764,2]
[408073449,1773111043990,-151.0,0.00012764,2]
[408073451,1773111044001,-151.0,0.00012764,2]
[408073453,1773111044010,-460.629695,0.00012764,2]
[408073455,1773111044019,-291.735138,0.00012764,2]
[408073457,1773111044028,-460.629695,0.00012764,2]
[408073459,1773111044037,-460.629695,0.00012764,2]
[408073461,1773111044046,-434.314475,0.00012764,2]
[408073463,1773111044056,-434.314475,0.00012764,2]
[408073465,1773111044066,-434.314475,0.00012764,2]
[408073467,1773111044075,-434.314475,0.00012764,2]
[408073469,1773111044084,-340.940114,0.00012764,2]
[408073471,1773111044094,-340.940114,0.00012764,2]
[408073473,1773111044103,-340.940114,0.00012764,2]
[408073475,1773111044112,-340.940114,0.00012764,2]
[408073477,1773111044123,-151.0,0.00012764,2]
[408073479,1773111044132,-151.0,0.00012764,2]
[408073481,1773111044141,-151.0,0.00012764,2]
[408073483,1773111044151,-243.651226,0.00012764,2]
[408073485,1773111044160,-243.651226,0.00012764,2]
[408073487,1773111044169,-243.651226,0.00012764,2]
[408073489,1773111044178,-243.651226,0.00012764,2]
[408073491,1773111044187,-162.8168,0.00012764,2]
[408073493,1773111044197,-162.8168,0.00012764,2]
[408073495,1773111044206,-162.8168,0.00012764,2]
[408073497,1773111044215,-162.8168,0.00012764,2]
[408073499,1773111044224,-335.958223,0.00012764,2]
[408073501,1773111044233,-335.958223,0.00012764,2]
[408073503,1773111044242,-335.958223,0.00012764,2]
[408073505,1773111044251,-335.958223,0.00012764,2]
[408073507,1773111044260,-386.75,0.00012764,2]
[408073509,1773111044269,-386.75,0.00012764,2]
[408073511,1773111044278,-386.75,0.00012764,2]
[408073513,1773111044288,-386.75,0.00012764,2]
[408073515,1773111044296,-151.0,0.00012764,2]
[408073517,1773111044306,-175.418768,0.00012764,2]
[408073519,1773111044315,-279.608835,0.00012764,2]
[408073521,1773111044324,-151.0,0.00012764,2]
[408073523,1773111044333,-175.418768,0.00012764,2]
[408073525,1773111044341,-279.608835,0.00012764,2]
[408073527,1773111044351,-175.418768,0.00012764,2]
[408073529,1773111044361,-279.608835,0.00012764,2]
[408073531,1773111044372,-175.418768,0.00012764,2]
[408073533,1773111044382,-279.608835,0.00012764,2]
[408073535,1773111044390,-251.971368,0.00012764,2]
[408073537,1773111044400,-251.971368,0.00012764,2]
[408073539,1773111044411,-251.971368,0.00012764,2]
[408073541,1773111044420,-251.971368,0.00012764,2]
[408073543,1773111044429,-2618.2481025,0.00012775,2]
[408073544,1773111044439,-500.0,0.00012811,2]
[408073546,1773111044452,-500.0,0.00012811,2]
[408073549,1773111044462,-500.0,0.00012811,2]
[408073551,1773111044471,-1403.562126,0.0001283,2]
[408073553,1773111044481,-1403.562126,0.0001283,2]
[408073554,1773111044491,-1195.047502,0.0001283,2]
[408073556,1773111044501,-1403.562126,0.0001283,2]
[408073559,1773111044512,-1195.047502,0.0001283,2]
[408073561,1773111044521,-1403.562126,0.0001283,2]
[408073562,1773111044531,-1195.047502,0.0001283,2]
[408073564,1773111044540,-1195.047502,0.0001283,2]
[408073567,1773111044550,-1209.136657,0.0001283,2]
[408073569,1773111044559,-1209.136657,0.0001283,2]
[408073570,1773111044568,-1209.136657,0.0001283,2]
[408073573,1773111044578,-1209.136657,0.0001283,2]
[408073575,1773111044587,-3339.015068,0.0001283,2]
[408073577,1773111044596,-3339.015068,0.0001283,2]
[408073579,1773111044606,-3339.015068,0.0001283,2]
[408073580,1773111044618,-3339.015068,0.0001283,2]
[408073582,1773111044627,-151.0,0.0001283,2]
[408073584,1773111044636,-151.0,0.0001283,2]
[408073586,1773111044646,-334.429159,0.0001283,2]
[408073589,1773111044655,-151.0,0.0001283,2]
[408073591,1773111044665,-334.429159,0.0001283,2]
[408073593,1773111044675,-334.429159,0.0001283,2]
[408073595,1773111044684,-334.429159,0.0001283,2]
[408073597,1773111044693,-2715.12328229,0.0001283,2]
[408073599,1773111044702,-155.0,0.00012864,2]
[408073600,1773111044712,-691.29857186,0.00012864,2]
[408073602,1773111044721,-155.0,0.00012864,2]
[408073604,1773111044730,-293.09887488,0.00012864,2]
[408073606,1773111044739,-210.40876251,0.00012864,2]
[408073608,1773111044749,-500.0,0.00012866,2]
[408073610,1773111044758,-500.0,0.00012866,2]
[408073612,1773111044767,-1579.091196,0.00012878,2]
[408073614,1773111044776,-1579.091196,0.00012878,2]
[408073616,1773111044785,-1579.091196,0.00012878,2]
[408073618,1773111044794,-151.0,0.00012878,2]
[408073620,1773111044803,-1579.091196,0.00012878,2]
[408073622,1773111044814,-151.0,0.00012878,2]
[408073624,1773111044823,-151.0,0.00012878,2]
[408073626,1773111044833,-469.624239,0.00012878,2]
[408073628,1773111044842,-469.624239,0.00012878,2]
[408073630,1773111044850,-4087.907474,0.00012878,2]
[408073632,1773111044860,-469.624239,0.00012878,2]
[408073634,1773111044870,-4087.907474,0.00012878,2]
[408073637,1773111044880,-469.624239,0.00012878,2]
[408073639,1773111044889,-367.445855,0.00012878,2]
[408073640,1773111044899,-4087.907474,0.00012878,2]
[408073642,1773111044908,-1544.035257,0.00012878,2]
[408073644,1773111044917,-367.445855,0.00012878,2]
[408073646,1773111044926,-4087.907474,0.00012878,2]
[408073648,1773111044935,-1544.035257,0.00012878,2]
[408073650,1773111044945,-367.445855,0.00012878,2]
[408073652,1773111044954,-1544.035257,0.00012878,2]
[408073654,1773111044964,-367.445855,0.00012878,2]
[408073656,1773111044973,-1544.035257,0.00012878,2]
[408073658,1773111044983,-461.67526834,0.00012883,2]
[408073660,1773111044992,-557.5788265,0.00012883,2]
[408073662,1773111045001,-2230.315306,0.00012883,2]
[408073665,1773111045011,-2815.58284374,0.00012885,2]
[408073666,1773111045020,-1663.25185065,0.000129,2]
[408073669,1773111045029,-500.0,0.0001292,2]
[408073671,1773111045039,-500.0,0.0001292,2]
[408073673,1773111045048,-522.578738,0.00012933,2]
[408073675,1773111045057,-522.578738,0.00012933,2]
[408073677,1773111045066,-522.578738,0.00012933,2]
[408073679,1773111045075,-522.578738,0.00012933,2]
[408073681,1773111045084,-7079.987139,0.00012933,2]
[408073683,1773111045092,-7079.987139,0.00012933,2]
[408073685,1773111045102,-7079.987139,0.00012933,2]
[408073687,1773111045111,-7079.987139,0.00012933,2]
[408073689,1773111045122,-2919.75940895,0.0001294,2]
[408073691,1773111045131,-155.0,0.00012968,2]
[408073693,1773111045141,-155.0,0.00012968,2]
[408073695,1773111045150,-155.0,0.00012968,2]
[408073697,1773111045159,-500.0,0.00012975,2]
[408073699,1773111045167,-500.0,0.00012975,2]
[408073701,1773111045176,-496.562432,0.00012988,2]
[408073703,1773111045185,-496.562432,0.00012988,2]
[408073705,1773111045194,-496.562432,0.00012988,2]
[408073707,1773111045203,-496.562432,0.00012988,2]
[408073709,1773111045212,-3100.21741565,0.00012995,2]
[408073711,1773111045221,-500.0,0.00013,2]
[408073713,1773111045230,-4718.0,0.00013,40]
[408073715,1773111045239,-787.0,0.00013,2]
[408073717,1773111045248,-500.0,0.0001303,2]
[408073719,1773111045257,-500.0,0.0001303,2]
[408073721,1773111045266,-500.0,0.00013085,2]
[408073723,1773111045274,-500.0,0.00013085,2]
[408073725,1773111045283,-500.193,0.00013108,2]
[408073727,1773111045292,-160.27028191,0.0001312,5]
[408073729,1773111045301,-160.0,0.0001312,5]
[408073731,1773111045310,-500.0,0.0001314,2]
[408073732,1773111045319,-376.59194791,0.0001314,2]
[408073733,1773111045328,-574.0,0.00013176,2]
[408073734,1773111045337,-500.0,0.00013194,2]
[408073735,1773111045345,-1689.148547,0.00013208,2]
[408073736,1773111045354,-1689.148547,0.00013208,2]
[408073737,1773111045363,-1689.148547,0.00013208,2]
[408073738,1773111045374,-1689.148547,0.00013208,2]
[408073739,1773111045383,-6061.022398,0.00013208,2]
[408073740,1773111045392,-6061.022398,0.00013208,2]
[408073741,1773111045400,-6061.022398,0.00013208,2]
[408073742,1773111045409,-6061.022398,0.00013208,2]
[408073743,1773111045418,-151.0,0.00013208,2]
[408073744,1773111045427,-1568.847731,0.00013208,2]
[408073745,1773111045436,-1568.847731,0.00013208,2]
[408073746,1773111045445,-1568.847731,0.00013208,2]
[408073747,1773111045458,-1568.847731,0.00013208,2]
[408073748,1773111045466,-1403.562126,0.00013208,2]
[408073749,1773111045475,-1403.562126,0.00013208,2]
[408073750,1773111045484,-1195.047502,0.00013208,2]
[408073751,1773111045494,-1403.562126,0.00013208,2]
[408073752,1773111045504,-1195.047502,0.00013208,2]
[408073753,1773111045513,-1403.562128,0.00013208,2]
[408073754,1773111045526,-1195.047502,0.00013208,2]
[408073756,1773111045535,-1195.047495,0.00013208,2]
[408073758,1773111045544,-1209.136657,0.00013208,2]
[408073760,1773111045553,-1209.136657,0.00013208,2]
[408073762,1773111045562,-1209.136657,0.00013208,2]
[408073764,1773111045572,-1209.136649,0.00013208,2]
[408073766,1773111045581,-3339.015068,0.00013208,2]
[408073768,1773111045590,-3339.015068,0.00013208,2]
[408073770,1773111045599,-3339.015068,0.00013208,2]
[408073772,1773111045608,-3339.015067,0.00013208,2]
[408073774,1773111045619,-151.0,0.00013208,2]
[408073776,1773111045628,-151.0,0.00013208,2]
[408073778,1773111045637,-334.429159,0.00013208,2]
[408073780,1773111045647,-151.0,0.00013208,2]
[408073782,1773111045656,-334.429159,0.00013208,2]
[408073801,1773111045832,-334.429159,0.00013208,2]
[408073804,1773111045841,-334.429156,0.00013208,2]
[408073807,1773111045851,-964.884489,0.00013208,2]
[408073810,1773111045860,-524.25658065,0.00013249,2]
[408073813,1773111045870,-1000.0,0.000133,2]
[408073815,1773111045879,-150.0,0.000133,30]
[408073817,1773111045888,-13230.57148452,0.00013424,2]
[408073819,1773111045898,-2011.65109198,0.00013426,2]
[408073821,1773111045906,-548.53399654,0.00013431,2]
[408073823,1773111045916,-578.20924308,0.00013431,2]
[408073825,1773111045925,-2312.83697232,0.00013431,2]
[408073827,1773111045935,-800.0,0.00013436,2]
[408073829,1773111045944,-151.0,0.000135,2]
[408073831,1773111045953,-151.0,0.000135,2]
[408073833,1773111045961,-151.0,0.000135,2]
[408073835,1773111045971,-151.0,0.000135,2]
[408073837,1773111045980,-151.0,0.000135,2]
[408073839,1773111045990,-151.0,0.000135,2]
[408073841,1773111045999,-151.0,0.000135,2]
[408073843,1773111046008,-151.0,0.000135,2]
[408073845,1773111046018,-151.0,0.000135,2]
[408073847,1773111046027,-151.0,0.000135,2]
[408073849,1773111046038,-250.0,0.000135,2]
[408073851,1773111046048,-250.0,0.000135,2]
[408073853,1773111046058,-250.0,0.000135,2]
[408073855,1773111046068,-250.0,0.000135,2]
[408073857,1773111046077,-250.0,0.000135,2]
[408073859,1773111046087,-250.0,0.000135,2]
[408073861,1773111046096,-239.7,0.000135,2]
[408073863,1773111046105,-151.0,0.000135,2]
[408073865,1773111046116,-175.418768,0.000135,2]
[408073867,1773111046125,-155.540854,0.000135,2]
[408073869,1773111046135,-175.418768,0.000135,2]
[408073871,1773111046144,-175.418768,0.000135,2]
[408073873,1773111046153,-175.418768,0.000135,2]
[408073875,1773111046163,-251.971368,0.000135,2]
[408073877,1773111046172,-251.971368,0.000135,2]
[408073879,1773111046181,-251.971368,0.000135,2]
[408073881,1773111046190,-251.971368,0.000135,2]
[408073883,1773111046198,-60209.2456808,0.00013524,2]
[408073936,1773111046676,-5526.81915222,0.00013524,2]
[408073938,1773111046688,-15551.44677325,0.00013524,2]
[408073967,1773111046948,-17453.96159278,0.00013524,2]
[408073974,1773111047000,-151.0,0.00012636,2]
[408073976,1773111047010,-151.0,0.00012636,2]
[408073978,1773111047019,-7930.42193263,0.00013524,2]
[408073980,1773111047030,-4895.9349,0.00013524,2]
[408073982,1773111047041,-2455.38369134,0.00013524,2]
[408073984,1773111047052,-5181.97132206,0.00013524,2]
[408073994,1773111047131,-151.0,0.00012636,2]
[408073996,1773111047140,-151.0,0.00012636,2]
[408073998,1773111047149,-151.0,0.00012636,2]
[408074000,1773111047157,-151.0,0.00012636,2]
[408074002,1773111047166,-151.0,0.00012636,2]
[408074004,1773111047175,-151.0,0.00012636,2]
[408074006,1773111047184,-151.0,0.00012713,2]
[408074008,1773111047193,-10062.3811304,0.00013524,2]
[408074010,1773111047203,-11751.64103945,0.00013524,2]
[408074012,1773111047214,-12624.48206804,0.00013524,2]
[408074015,1773111047228,-151.0,0.00012713,2]
[408074017,1773111047237,-13731.9191,0.00013524,2]
[408074019,1773111047249,-20497.6461613,0.00013524,2]
[408074021,1773111047259,-4132.80713712,0.00013524,2]
[408074023,1773111047269,-888.80974292,0.00013524,2]
[408074025,1773111047280,-3494.556342,0.00013524,2]
[408074028,1773111047291,-260851.7106363,0.00013524,2]
[408074030,1773111047299,-151.0,0.00013524,2]
[408074031,1773111047308,-164.899832,0.00013524,2]
[408074033,1773111047317,-329.899878,0.00013524,2]
[408074035,1773111047326,-329.899878,0.00013524,2]
[408074037,1773111047335,-329.899878,0.00013524,2]
[408074039,1773111047344,-329.899878,0.00013524,2]
[408074041,1773111047353,-329.899878,0.00013524,2]
[408074043,1773111047361,-329.899878,0.00013524,2]
[408074045,1773111047370,-329.899878,0.00013524,2]
[408074047,1773111047379,-329.899878,0.00013524,2]
[408074049,1773111047388,-329.899878,0.00013524,2]
[408074051,1773111047397,-329.899878,0.00013524,2]
[408074053,1773111047406,-329.899878,0.00013524,2]
[408074055,1773111047414,-329.899878,0.00013524,2]
[408074057,1773111047424,-329.899878,0.00013524,2]
[408074059,1773111047433,-387.874784,0.00013524,2]
[408074061,1773111047443,-329.899878,0.00013524,2]
[408074063,1773111047454,-387.874784,0.00013524,2]
[408074065,1773111047463,-329.899878,0.00013524,2]
[408074067,1773111047472,-387.874784,0.00013524,2]
[408074069,1773111047481,-329.899878,0.00013524,2]
[408074071,1773111047491,-387.874784,0.00013524,2]
[408074073,1773111047500,-329.899878,0.00013524,2]
[408074075,1773111047509,-387.874784,0.00013524,2]
[408074077,1773111047518,-329.899878,0.00013524,2]
[408074079,1773111047529,-387.874784,0.00013524,2]
[408074081,1773111047539,-329.899878,0.00013524,2]
[408074104,1773111047741,-387.874784,0.00013524,2]
[408074107,1773111047766,-329.89987484,0.00013524,2]
[408074109,1773111047775,-387.874784,0.00013524,2]
[408074111,1773111047784,-387.874784,0.00013524,2]
[408074113,1773111047793,-387.874784,0.00013524,2]
[408074115,1773111047802,-387.874784,0.00013524,2]
[408074117,1773111047811,-387.874784,0.00013524,2]
[408074119,1773111047820,-387.874784,0.00013524,2]
[408074121,1773111047830,-387.874784,0.00013524,2]
[408074123,1773111047838,-387.874784,0.00013524,2]
[408074125,1773111047847,-387.874784,0.00013524,2]
[408074127,1773111047858,-387.874784,0.00013524,2]
[408074129,1773111047868,-387.874784,0.00013524,2]
[408074131,1773111047877,-387.874784,0.00013524,2]
[408074133,1773111047885,-387.874774,0.00013524,2]
[408074135,1773111047894,-195.515388,0.00013524,2]
[408074137,1773111047903,-195.515388,0.00013524,2]
[408074139,1773111047912,-195.515388,0.00013524,2]
[408074141,1773111047921,-195.515388,0.00013524,2]
[408074143,1773111047929,-195.515388,0.00013524,2]
[408074145,1773111047938,-195.515388,0.00013524,2]
[408074147,1773111047947,-195.515388,0.00013524,2]
[408074149,1773111047956,-195.515388,0.00013524,2]
[408074151,1773111047965,-195.515388,0.00013524,2]
[408074153,1773111047974,-195.515388,0.00013524,2]
[408074155,1773111047983,-195.515388,0.00013524,2]
[408074157,1773111047992,-195.515388,0.00013524,2]
[408074159,1773111048002,-195.515388,0.00013524,2]
[408074160,1773111048013,-195.515388,0.00013524,2]
[408074162,1773111048022,-195.515388,0.00013524,2]
[408074164,1773111048031,-195.515388,0.00013524,2]
[408074166,1773111048040,-195.515388,0.00013524,2]
[408074168,1773111048048,-195.515388,0.00013524,2]
[408074170,1773111048058,-195.515388,0.00013524,2]
[408074172,1773111048067,-195.515392,0.00013524,2]
[408074174,1773111048075,-151.0,0.00013524,2]
[408074176,1773111048084,-151.0,0.00013524,2]
[408074178,1773111048093,-151.0,0.00013524,2]
[408074180,1773111048103,-151.0,0.00013524,2]
[408074182,1773111048112,-151.0,0.00013524,2]
[408074184,1773111048122,-151.0,0.00013524,2]
[408074186,1773111048131,-151.0,0.00013524,2]
[408074188,1773111048141,-151.0,0.00013524,2]
[408074190,1773111048150,-151.0,0.00013524,2]
[408074192,1773111048161,-151.0,0.00013524,2]
[408074194,1773111048170,-151.0,0.00013524,2]
[408074196,1773111048179,-151.0,0.00013524,2]
[408074198,1773111048188,-151.0,0.00013524,2]
[408074200,1773111048197,-151.0,0.00013524,2]
[408074202,1773111048206,-157.149952,0.00013524,2]
[408074204,1773111048216,-185.128819,0.00013524,2]
[408074206,1773111048224,-151.0,0.00013524,2]
[408074208,1773111048234,-151.0,0.00013524,2]
[408074210,1773111048244,-151.0,0.00013524,2]
[408074212,1773111048253,-151.0,0.00013524,2]
[408074214,1773111048263,-180.766517,0.00013524,2]
[408074216,1773111048272,-180.766517,0.00013524,2]
[408074218,1773111048282,-180.766517,0.00013524,2]
[408074220,1773111048291,-180.766517,0.00013524,2]
[408074222,1773111048300,-180.766517,0.00013524,2]
[408074224,1773111048309,-180.766517,0.00013524,2]
[408074226,1773111048318,-180.766517,0.00013524,2]
[408074228,1773111048329,-180.76652,0.00013524,2]
[408074230,1773111048346,-295.583993,0.00013524,2]
[408074232,1773111048355,-295.583993,0.00013524,2]
[408074234,1773111048365,-295.583993,0.00013524,2]
[408074237,1773111048376,-295.583993,0.00013524,2]
[408074239,1773111048393,-295.583993,0.00013524,2]
[408074241,1773111048407,-295.583993,0.00013524,2]
[408074243,1773111048416,-151.0,0.00013524,2]
[408074245,1773111048426,-151.0,0.00013524,2]
[408074247,1773111048435,-295.583993,0.00013524,2]
[408074249,1773111048445,-295.583997,0.00013524,2]
[408074251,1773111048459,-151.0,0.00013524,2]
[408074253,1773111048468,-151.0,0.00013524,2]
[408074255,1773111048477,-151.0,0.00013524,2]
[408074257,1773111048487,-460.629695,0.00013524,2]
[408074259,1773111048496,-151.0,0.00013524,2]
[408074261,1773111048505,-460.629695,0.00013524,2]
[408074263,1773111048514,-151.0,0.00013524,2]
[408074265,1773111048525,-460.629695,0.00013524,2]
[408074267,1773111048535,-151.0,0.00013524,2]
[408074269,1773111048544,-460.629695,0.00013524,2]
[408074271,1773111048553,-460.629695,0.00013524,2]
[408074272,1773111048562,-460.629695,0.00013524,2]
[408074273,1773111048571,-460.629695,0.00013524,2]
[408074274,1773111048581,-460.629689,0.00013524,2]
[408074275,1773111048590,-434.314475,0.00013524,2]
[408074276,1773111048599,-434.314475,0.00013524,2]
[408074277,1773111048609,-434.314475,0.00013524,2]
[408074278,1773111048618,-434.314475,0.00013524,2]
[408074279,1773111048627,-434.314475,0.00013524,2]
[408074280,1773111048636,-434.314475,0.00013524,2]
[408074281,1773111048646,-434.314475,0.00013524,2]
[408074282,1773111048655,-434.314472,0.00013524,2]
[408074283,1773111048664,-340.940114,0.00013524,2]
[408074284,1773111048673,-340.940114,0.00013524,2]
[408074285,1773111048682,-340.940114,0.00013524,2]
[408074286,1773111048691,-340.940114,0.00013524,2]
[408074287,1773111048701,-340.940114,0.00013524,2]
[408074288,1773111048711,-340.940114,0.00013524,2]
[408074289,1773111048720,-340.940114,0.00013524,2]
[408074290,1773111048729,-340.9401196,0.00013524,2]
[408074291,1773111048739,-151.0,0.00013524,2]
[408074292,1773111048749,-151.0,0.00013524,2]
[408074293,1773111048758,-151.0,0.00013524,2]
[408074294,1773111048767,-151.0,0.00013524,2]
[408074295,1773111048776,-151.0,0.00013524,2]
[408074296,1773111048785,-151.0,0.00013524,2]
[408074297,1773111048794,-243.651226,0.00013524,2]
[408074298,1773111048803,-243.651226,0.00013524,2]
[408074299,1773111048813,-243.651226,0.00013524,2]
[408074300,1773111048823,-243.651226,0.00013524,2]
[408074301,1773111048833,-243.651226,0.00013524,2]
[408074303,1773111048842,-243.651226,0.00013524,2]
[408074305,1773111048851,-243.651226,0.00013524,2]
[408074307,1773111048860,-243.651223,0.00013524,2]
[408074309,1773111048869,-162.8168,0.00013524,2]
[408074311,1773111048879,-162.8168,0.00013524,2]
[408074313,1773111048887,-162.8168,0.00013524,2]
[408074315,1773111048897,-162.8168,0.00013524,2]
[408074317,1773111048906,-162.8168,0.00013524,2]
[408074319,1773111048914,-162.8168,0.00013524,2]
[408074321,1773111048924,-162.8168,0.00013524,2]
[408074323,1773111048933,-162.816806,0.00013524,2]
[408074325,1773111048942,-335.958223,0.00013524,2]
[408074327,1773111048951,-335.958223,0.00013524,2]
[408074329,1773111048960,-335.958223,0.00013524,2]
[408074331,1773111048969,-335.958223,0.00013524,2]
[408074333,1773111048983,-335.958223,0.00013524,2]
[408074335,1773111048992,-335.958223,0.00013524,2]
[408074337,1773111049001,-335.958223,0.00013524,2]
[408074339,1773111049010,-335.958215,0.00013524,2]
[408074341,1773111049019,-386.75,0.00013524,2]
[408074343,1773111049028,-386.75,0.00013524,2]
[408074345,1773111049037,-386.75,0.00013524,2]
[408074347,1773111049047,-386.75,0.00013524,2]
[408074349,1773111049056,-386.75,0.00013524,2]
[408074351,1773111049064,-386.75,0.00013524,2]
[408074353,1773111049075,-386.75,0.00013524,2]
[408074355,1773111049084,-386.75,0.00013524,2]
[408074357,1773111049093,-151.0,0.00013524,2]
[408074359,1773111049102,-279.608835,0.00013524,2]
[408074361,1773111049111,-175.418768,0.00013524,2]
[408074363,1773111049122,-279.608835,0.00013524,2]
[408074365,1773111049131,-175.418768,0.00013524,2]
[408074367,1773111049140,-279.608835,0.00013524,2]
[408074369,1773111049149,-279.608835,0.00013524,2]
[408074371,1773111049158,-175.418768,0.00013524,2]
[408074373,1773111049167,-279.608835,0.00013524,2]
[408074375,1773111049176,-279.608835,0.00013524,2]
[408074376,1773111049185,-175.418762,0.00013524,2]
[408074377,1773111049194,-279.608835,0.00013524,2]
[408074378,1773111049203,-279.608835,0.00013524,2]
[408074379,1773111049212,-251.971368,0.00013524,2]
[408074380,1773111049222,-251.971368,0.00013524,2]
[408074381,1773111049231,-251.971368,0.00013524,2]
[408074382,1773111049242,-251.971367,0.00013524,2]
[408074383,1773111049251,-522.578738,0.00013524,2]
[408074384,1773111049260,-522.578738,0.00013524,2]
[408074385,1773111049271,-522.578738,0.00013524,2]
[408074386,1773111049280,-522.578738,0.00013524,2]
[408074387,1773111049289,-522.578738,0.00013524,2]
[408074388,1773111049298,-522.578738,0.00013524,2]
[408074389,1773111049307,-522.578738,0.00013524,2]
[408074390,1773111049316,-522.578738,0.00013524,2]
[408074391,1773111049325,-7079.987139,0.00013524,2]
[408074392,1773111049334,-7079.987139,0.00013524,2]
[408074393,1773111049343,-6364.42509691,0.00013524,2]
[408074394,1773111049359,-715.56204209,0.00013524,2]
[408074395,1773111049369,-7079.987139,0.00013524,2]
[408074396,1773111049378,-3914.00430559,0.00013524,2]
[408074397,1773111049389,-569.37999998,0.00013524,2]
[408075961,1773112202403,161.19,2e-05,2]
[408076062,1773112232934,-5000.0,0.00010407,2]
[408076064,1773112232943,-418.0,0.00010511,2]
[408076066,1773112232953,-567.0,0.00010512,2]
[408076068,1773112232962,-193.86270347,0.00010672,2]
[408076070,1773112232971,-160.0,0.00012144,2]
[408076072,1773112232980,-300.0,0.00012483,2]
[408076074,1773112232990,-266.691,0.00012484,2]
[408076076,1773112232999,-2189.0,0.00012484,2]
[408076078,1773112233008,-1392.0,0.00012484,2]
[408076080,1773112233017,-639.0,0.00012484,2]
[408076082,1773112233026,-733.0,0.00012484,2]
[408076084,1773112233035,-233.063,0.00012484,2]
[408076086,1773112233045,-436.0,0.00012484,2]
[408076088,1773112233054,-8689.72861716,0.00012671,2]
[408076133,1773112238419,-3217.78571889,0.00012671,2]
[408076134,1773112238428,-228.75799009,0.00012672,2]
[408076135,1773112238437,-500.0,0.00012745,2]
[408076136,1773112238446,-471.64100753,0.00012745,2]
[408076143,1773112239320,-169.50642487,0.00012745,2]
[408076144,1773112239332,-500.0,0.00012745,2]
[408076145,1773112239342,-736.05352323,0.00012748,2]
[408076526,1773112244242,-5000.0,0.00012748,2]
[408076528,1773112244253,-3732.39398522,0.00012748,2]
[408076728,1773112246412,-3515.75,0.00012748,2]
[408076730,1773112246424,-16088.33631341,0.00012748,2]
[408077194,1773112548406,-1665.9663638,0.00011467,2]
[408077195,1773112548431,-334.0336362,0.00011581,2]
[408077196,1773112549846,-2000.0,0.00011581,2]
[408077197,1773112550801,-2000.0,0.00011581,2]
[408077198,1773112551117,-665.9663638,0.00011581,2]
[408077199,1773112551139,-1334.0336362,0.00011698,2]
[408077200,1773112551457,-2000.0,0.00011698,2]
[408077201,1773112551770,-2000.0,0.00011698,2]
[408077202,1773112552098,-2000.0,0.00011698,2]
[408077203,1773112552451,-2000.0,0.00011698,2]
[408077204,1773112552853,-2000.0,0.00011698,2]
[408077205,1773112553131,-2000.0,0.00011698,2]
[408077206,1773112553435,-2000.0,0.00011698,2]
[408077207,1773112553791,-2000.0,0.00011698,2]
[408077208,1773112554521,-2000.0,0.00011698,2]
[408077209,1773112554654,-2000.0,0.00011698,2]
[408077210,1773112554978,-2000.0,0.00011698,2]
[408077211,1773112555393,-2000.0,0.00011698,2]
[408077212,1773112555824,-2000.0,0.00011698,2]
[408077213,1773112556251,-2000.0,0.00011698,2]
[408077214,1773112556696,-2000.0,0.00011698,2]
[408077215,1773112557015,-2000.0,0.00011698,2]
[408077216,1773112557342,-2000.0,0.00011698,2]
[408077217,1773112557709,-528.4586506,0.00011698,2]
[408077218,1773112557731,-166.11214167,0.00011999,2]
[408077219,1773112557751,-648.66508635,0.00011999,2]
[408077220,1773112557772,-648.66508635,0.00011999,2]
[408077221,1773112557793,-8.09903503,0.00011999,2]